[Event "Titled Tuesday Blitz October 18 Late 2022"]
[White "Bok, Benjamin"]
[Black "Tan, Ralph"]
[WhiteFideId "1017063"]
[BlackFideId "30966590"]
[WhiteElo "2658"]
[BlackElo "2059"]
[Result "1-0"]
[Round "01"]
[TimeControl "180+1"]
[Date "2022.10.18"]
[WhiteClock "0:00:07"]
[BlackClock "0:00:15"]

1. d4 {[%clk 0:03:00]}  Nf6 {[%clk 0:02:59]} 2. c4 {[%clk 0:03:00]}  g6 {[%clk 0:02:59]} 3. g3 {[%clk 0:03:00]}  c6 {[%clk 0:02:56]} 4. Nf3 {[%clk 0:03:00]}  Bg7 {[%clk 0:02:56]} 5. Bg2 {[%clk 0:02:59]}  O-O {[%clk 0:02:56]} 6. O-O {[%clk 0:02:58]}  d5 {[%clk 0:02:56]} 7. b3 {[%clk 0:02:59]}  Bf5 {[%clk 0:02:52]} 8. Bb2 {[%clk 0:02:59]}  Nbd7 {[%clk 0:02:51]} 9. e3 {[%clk 0:02:58]}  Rc8 {[%clk 0:02:48]} 10. Qe2 {[%clk 0:02:57]}  Re8 {[%clk 0:02:38]} 11. Rd1 {[%clk 0:02:52]}  Ne4 {[%clk 0:02:24]} 12. Nc3 {[%clk 0:02:44]}  Nxc3 {[%clk 0:02:23]} 13. Bxc3 {[%clk 0:02:45]}  Be4 {[%clk 0:02:24]} 14. Bf1 {[%clk 0:02:45]}  a6 {[%clk 0:02:00]} 15. Rac1 {[%clk 0:02:38]}  b5 {[%clk 0:02:00]} 16. Nd2 {[%clk 0:02:33]}  Bf5 {[%clk 0:01:58]} 17. Bg2 {[%clk 0:02:33]}  Be6 {[%clk 0:01:44]} 18. e4 {[%clk 0:02:20]}  bxc4 {[%clk 0:01:37]} 19. bxc4 {[%clk 0:02:19]}  dxe4 {[%clk 0:01:34]} 20. Nxe4 {[%clk 0:02:20]}  Qc7 {[%clk 0:01:13]} 21. h3 {[%clk 0:01:21]}  c5 {[%clk 0:01:06]} 22. d5 {[%clk 0:01:17]}  Bf5 {[%clk 0:01:07]} 23. Bxg7 {[%clk 0:01:16]}  Kxg7 {[%clk 0:01:06]} 24. d6 {[%clk 0:00:26]}  Qb6 {[%clk 0:00:38]} 25. Rb1 {[%clk 0:00:25]}  Qa5 {[%clk 0:00:34]} 26. dxe7 {[%clk 0:00:18]}  Bxe4 {[%clk 0:00:33]} 27. Qxe4 {[%clk 0:00:17]}  Nf6 {[%clk 0:00:32]} 28. Qe5 {[%clk 0:00:16]}  Qc7 {[%clk 0:00:32]} 29. Rd6 {[%clk 0:00:13]}  Qxe7 {[%clk 0:00:31]} 30. Qxe7 {[%clk 0:00:13]}  Rxe7 {[%clk 0:00:32]} 31. Rxa6 {[%clk 0:00:13]}  Re2 {[%clk 0:00:29]} 32. Ra7 {[%clk 0:00:13]}  Rf8 {[%clk 0:00:14]} 33. a4 {[%clk 0:00:09]}  Rc2 {[%clk 0:00:15]} 34. Bd5 {[%clk 0:00:09]}  Nxd5 {[%clk 0:00:10]} 35. cxd5 {[%clk 0:00:10]}  Rd2 {[%clk 0:00:10]} 36. Rd7 {[%clk 0:00:09]}  c4 {[%clk 0:00:11]} 37. Rc1 {[%clk 0:00:08]}  Rc8 {[%clk 0:00:10]} 38. d6 {[%clk 0:00:07]}  Rd3 {[%clk 0:00:09]} 39. Rc7 {[%clk 0:00:07]}  Rd8 {[%clk 0:00:10]} 40. R1xc4 {[%clk 0:00:06]}  R3xd6 {[%clk 0:00:10]} 41. Rf4 {[%clk 0:00:05]}  R6d7 {[%clk 0:00:11]} 42. Rxd7 {[%clk 0:00:05]}  Rxd7 {[%clk 0:00:11]} 43. Kg2 {[%clk 0:00:04]}  Ra7 {[%clk 0:00:12]} 44. Kf3 {[%clk 0:00:03]}  h5 {[%clk 0:00:13]} 45. h4 {[%clk 0:00:02]}  Kf8 {[%clk 0:00:13]} 46. Ke3 {[%clk 0:00:02]}  Ra5 {[%clk 0:00:14]} 47. Re4 {[%clk 0:00:02]}  Kg7 {[%clk 0:00:14]} 48. Kd3 {[%clk 0:00:02]}  Kf6 {[%clk 0:00:14]} 49. Kc3 {[%clk 0:00:02]}  Kf5 {[%clk 0:00:15]} 50. Rf4+ {[%clk 0:00:03]}  Ke6 {[%clk 0:00:15]} 51. Kb4 {[%clk 0:00:04]}  Ra6 {[%clk 0:00:14]} 52. a5 {[%clk 0:00:04]}  f6 {[%clk 0:00:14]} 53. Kb5 {[%clk 0:00:04]}  Ra8 {[%clk 0:00:14]} 54. a6 {[%clk 0:00:05]}  g5 {[%clk 0:00:14]} 55. Rc4 {[%clk 0:00:05]}  Kf5 {[%clk 0:00:13]} 56. Kb6 {[%clk 0:00:04]}  Rb8+ {[%clk 0:00:14]} 57. Kc7 {[%clk 0:00:04]}  Rb1 {[%clk 0:00:13]} 58. a7 {[%clk 0:00:04]}  Ra1 {[%clk 0:00:13]} 59. Kb6 {[%clk 0:00:05]}  Rb1+ {[%clk 0:00:13]} 60. Ka5 {[%clk 0:00:05]}  gxh4 {[%clk 0:00:11]} 61. gxh4 {[%clk 0:00:04]}  Ra1+ {[%clk 0:00:11]} 62. Ra4 {[%clk 0:00:04]}  Re1 {[%clk 0:00:10]} 63. a8=Q {[%clk 0:00:04]}  Re5+ {[%clk 0:00:11]} 64. Kb4 {[%clk 0:00:04]}  Re4+ {[%clk 0:00:11]} 65. Qxe4+ {[%clk 0:00:03]}  Kxe4 {[%clk 0:00:12]} 66. Kc3+ {[%clk 0:00:04]}  Kf3 {[%clk 0:00:13]} 67. Kd2 {[%clk 0:00:04]}  Kxf2 {[%clk 0:00:14]} 68. Rf4+ {[%clk 0:00:04]}  Kg3 {[%clk 0:00:15]} 69. Ke3 {[%clk 0:00:05]}  f5 {[%clk 0:00:15]} 70. Rxf5 {[%clk 0:00:05]}  Kxh4 {[%clk 0:00:15]} 71. Kf3 {[%clk 0:00:06]}  Kh3 {[%clk 0:00:15]} 72. Rxh5# {[%clk 0:00:07]} 1-0


[Site "https://www.chess.com"]

[Event "Titled Tuesday Blitz October 18 Late 2022"]
[White "Bortnyk, Mykola"]
[Black "Bilan, Danila"]
[WhiteFideId "14120836"]
[BlackFideId "24161918"]
[WhiteElo "2582"]
[BlackElo "2203"]
[Result "1-0"]
[Round "01"]
[TimeControl "180+1"]
[Date "2022.10.18"]
[WhiteClock "0:01:29"]
[BlackClock "0:00:16"]

1. e4 {[%clk 0:03:00]}  c6 {[%clk 0:02:58]} 2. d4 {[%clk 0:03:00]}  d5 {[%clk 0:02:59]} 3. Nc3 {[%clk 0:03:00]}  b5 {[%clk 0:02:54]} 4. a3 {[%clk 0:02:57]}  e6 {[%clk 0:02:49]} 5. e5 {[%clk 0:02:53]}  b4 {[%clk 0:02:45]} 6. axb4 {[%clk 0:02:52]}  Bxb4 {[%clk 0:02:46]} 7. Qg4 {[%clk 0:02:45]}  Ne7 {[%clk 0:02:31]} 8. Qxg7 {[%clk 0:02:41]}  Rg8 {[%clk 0:02:31]} 9. Qxh7 {[%clk 0:02:42]}  c5 {[%clk 0:02:25]} 10. Nf3 {[%clk 0:02:38]}  Nbc6 {[%clk 0:02:22]} 11. Bb5 {[%clk 0:02:35]}  Qb6 {[%clk 0:02:13]} 12. Bxc6+ {[%clk 0:02:25]}  Qxc6 {[%clk 0:02:13]} 13. O-O {[%clk 0:02:20]}  Ba6 {[%clk 0:01:57]} 14. Rd1 {[%clk 0:02:18]}  Bxc3 {[%clk 0:01:54]} 15. bxc3 {[%clk 0:01:57]}  Be2 {[%clk 0:01:52]} 16. Ng5 {[%clk 0:01:57]}  Bxd1 {[%clk 0:01:42]} 17. Qxf7+ {[%clk 0:01:55]}  Kd7 {[%clk 0:01:40]} 18. Nh7 {[%clk 0:01:55]}  Rge8 {[%clk 0:00:45]} 19. Nf6+ {[%clk 0:01:50]}  Kd8 {[%clk 0:00:45]} 20. Bg5 {[%clk 0:01:43]}  Bxc2 {[%clk 0:00:32]} 21. Nxe8 {[%clk 0:01:42]}  Qxe8 {[%clk 0:00:32]} 22. Qxe6 {[%clk 0:01:42]}  Bb3 {[%clk 0:00:27]} 23. Qd6+ {[%clk 0:01:35]}  Kc8 {[%clk 0:00:24]} 24. Bxe7 {[%clk 0:01:34]}  Kb7 {[%clk 0:00:21]} 25. Qxc5 {[%clk 0:01:32]}  Rc8 {[%clk 0:00:16]} 26. Qb4+ {[%clk 0:01:32]}  Ka8 {[%clk 0:00:16]} 27. Qxb3 {[%clk 0:01:29]}  Qxe7 {[%clk 0:00:16]} 28. Qxd5+ {[%clk 0:01:29]}  Kb8 {[%clk 0:00:16]} 29. Rb1+ {[%clk 0:01:29]} 1-0


[Site "https://www.chess.com"]

[Event "Titled Tuesday Blitz October 18 Late 2022"]
[White "Bulgurlu, Okan"]
[Black "Ozdemir, Serhan Berat"]
[WhiteFideId "6352316"]
[BlackFideId "6374611"]
[WhiteElo "2157"]
[BlackElo "2016"]
[Result "0-1"]
[Round "01"]
[TimeControl "180+1"]
[Date "2022.10.19"]
[WhiteClock "0:00:55"]
[BlackClock "0:00:18"]

1. e4 {[%clk 0:02:45]}  c5 {[%clk 0:02:57]} 2. Nf3 {[%clk 0:02:44]}  e6 {[%clk 0:02:57]} 3. d4 {[%clk 0:02:44]}  cxd4 {[%clk 0:02:58]} 4. Nxd4 {[%clk 0:02:44]}  Nf6 {[%clk 0:02:58]} 5. Nc3 {[%clk 0:02:44]}  Nc6 {[%clk 0:02:59]} 6. Be2 {[%clk 0:02:42]}  Bb4 {[%clk 0:02:54]} 7. Bf3 {[%clk 0:02:31]}  O-O {[%clk 0:02:44]} 8. O-O {[%clk 0:02:29]}  Ne5 {[%clk 0:02:16]} 9. Bf4 {[%clk 0:02:23]}  Nxf3+ {[%clk 0:02:07]} 10. Nxf3 {[%clk 0:02:24]}  Bxc3 {[%clk 0:02:05]} 11. bxc3 {[%clk 0:02:24]}  Nxe4 {[%clk 0:02:05]} 12. Qd4 {[%clk 0:02:24]}  d5 {[%clk 0:02:03]} 13. c4 {[%clk 0:02:22]}  Qb6 {[%clk 0:01:45]} 14. Qxb6 {[%clk 0:02:10]}  axb6 {[%clk 0:01:46]} 15. cxd5 {[%clk 0:02:10]}  exd5 {[%clk 0:01:44]} 16. Rfd1 {[%clk 0:02:10]}  Be6 {[%clk 0:01:36]} 17. Bc7 {[%clk 0:02:05]}  Rfc8 {[%clk 0:01:33]} 18. Bxb6 {[%clk 0:02:04]}  Rxc2 {[%clk 0:01:34]} 19. Nd4 {[%clk 0:02:04]}  Rcxa2 {[%clk 0:01:31]} 20. Rxa2 {[%clk 0:02:02]}  Rxa2 {[%clk 0:01:32]} 21. f3 {[%clk 0:02:00]}  Nd6 {[%clk 0:01:11]} 22. Bc5 {[%clk 0:01:53]}  Nc4 {[%clk 0:01:06]} 23. Rb1 {[%clk 0:01:49]}  Rb2 {[%clk 0:01:03]} 24. Ra1 {[%clk 0:01:45]}  h6 {[%clk 0:00:56]} 25. Ra8+ {[%clk 0:01:44]}  Kh7 {[%clk 0:00:56]} 26. Re8 {[%clk 0:01:43]}  b6 {[%clk 0:00:44]} 27. Nxe6 {[%clk 0:01:25]}  fxe6 {[%clk 0:00:43]} 28. Bf8 {[%clk 0:01:25]}  Ne3 {[%clk 0:00:32]} 29. g3 {[%clk 0:01:17]}  Rg2+ {[%clk 0:00:25]} 30. Kh1 {[%clk 0:01:17]}  Re2 {[%clk 0:00:25]} 31. Kg1 {[%clk 0:01:15]}  Nf5 {[%clk 0:00:21]} 32. Rb8 {[%clk 0:01:11]}  d4 {[%clk 0:00:21]} 33. Rxb6 {[%clk 0:01:05]}  d3 {[%clk 0:00:20]} 34. Kf1 {[%clk 0:01:03]}  Ne3+ {[%clk 0:00:18]} 35. Kg1 {[%clk 0:01:02]}  d2 {[%clk 0:00:18]} 36. Rd6 {[%clk 0:00:55]}  Nd5 {[%clk 0:00:18]} 0-1


[Site "https://www.chess.com"]

[Event "Titled Tuesday Blitz October 18 Late 2022"]
[White "Can, Melih Kaan"]
[Black "Gabrielian, Artur"]
[WhiteFideId "6317383"]
[BlackFideId "4131002"]
[WhiteElo "2029"]
[BlackElo "2432"]
[Result "0-1"]
[Round "01"]
[TimeControl "180+1"]
[Date "2022.10.19"]
[WhiteClock "0:00:02"]
[BlackClock "0:00:32"]

1. e4 {[%clk 0:02:54]}  c5 {[%clk 0:02:59]} 2. Nf3 {[%clk 0:02:54]}  d6 {[%clk 0:02:59]} 3. c3 {[%clk 0:02:52]}  Nf6 {[%clk 0:02:58]} 4. h3 {[%clk 0:02:50]}  g6 {[%clk 0:02:58]} 5. Bd3 {[%clk 0:02:51]}  Bg7 {[%clk 0:02:58]} 6. Bc2 {[%clk 0:02:51]}  O-O {[%clk 0:02:58]} 7. O-O {[%clk 0:02:52]}  e5 {[%clk 0:02:58]} 8. d4 {[%clk 0:02:52]}  cxd4 {[%clk 0:02:58]} 9. cxd4 {[%clk 0:02:53]}  exd4 {[%clk 0:02:58]} 10. Nxd4 {[%clk 0:02:53]}  d5 {[%clk 0:02:58]} 11. e5 {[%clk 0:02:23]}  Ne4 {[%clk 0:02:55]} 12. Bf4 {[%clk 0:02:17]}  Qb6 {[%clk 0:02:40]} 13. Nc3 {[%clk 0:02:01]}  Nxc3 {[%clk 0:02:28]} 14. bxc3 {[%clk 0:02:02]}  Nc6 {[%clk 0:02:27]} 15. Re1 {[%clk 0:01:55]}  Be6 {[%clk 0:02:24]} 16. Rb1 {[%clk 0:01:54]}  Qc7 {[%clk 0:02:19]} 17. Qe2 {[%clk 0:01:38]}  a6 {[%clk 0:02:12]} 18. Bd3 {[%clk 0:01:31]}  Rac8 {[%clk 0:02:09]} 19. Qe3 {[%clk 0:01:11]}  Rfe8 {[%clk 0:02:09]} 20. Nf3 {[%clk 0:01:04]}  b5 {[%clk 0:01:54]} 21. Bh6 {[%clk 0:01:03]}  Qa7 {[%clk 0:01:37]} 22. Qg5 {[%clk 0:00:59]}  Qe7 {[%clk 0:01:37]} 23. Qf4 {[%clk 0:00:57]}  Na5 {[%clk 0:01:18]} 24. Bxg7 {[%clk 0:00:54]}  Kxg7 {[%clk 0:01:18]} 25. Rec1 {[%clk 0:00:20]}  Nc4 {[%clk 0:01:13]} 26. Nd4 {[%clk 0:00:14]}  Bd7 {[%clk 0:01:08]} 27. Bxc4 {[%clk 0:00:13]}  Rxc4 {[%clk 0:01:06]} 28. Re1 {[%clk 0:00:13]}  Be6 {[%clk 0:01:03]} 29. Qd2 {[%clk 0:00:08]}  Rec8 {[%clk 0:01:02]} 30. Re3 {[%clk 0:00:09]}  Qc7 {[%clk 0:00:46]} 31. Rc1 {[%clk 0:00:09]}  b4 {[%clk 0:00:46]} 32. Nxe6+ {[%clk 0:00:05]}  fxe6 {[%clk 0:00:46]} 33. Rg3 {[%clk 0:00:05]}  Qxe5 {[%clk 0:00:43]} 34. Re3 {[%clk 0:00:05]}  Qf6 {[%clk 0:00:42]} 35. Qe2 {[%clk 0:00:05]}  R4c6 {[%clk 0:00:39]} 36. c4 {[%clk 0:00:02]}  dxc4 {[%clk 0:00:36]} 37. Rd1 {[%clk 0:00:02]}  R8c7 {[%clk 0:00:33]} 38. g3 {[%clk 0:00:01]}  c3 {[%clk 0:00:33]} 39. Qc2 {[%clk 0:00:02]}  Qf5 {[%clk 0:00:32]} 40. Qb3 {[%clk 0:00:02]}  Rf7 {[%clk 0:00:32]} 0-1


[Site "https://www.chess.com"]

[Event "Titled Tuesday Blitz October 18 Late 2022"]
[White "Carbone, Diego"]
[Black "Rustemov, Alexander"]
[WhiteFideId "3002179"]
[BlackFideId "4119002"]
[WhiteElo "2243"]
[BlackElo "2751"]
[Result "0-1"]
[Round "01"]
[TimeControl "180+1"]
[Date "2022.10.19"]
[WhiteClock "0:00:08"]
[BlackClock "0:00:33"]

1. d4 {[%clk 0:02:56]}  g6 {[%clk 0:02:59]} 2. c4 {[%clk 0:02:56]}  Bg7 {[%clk 0:02:59]} 3. g3 {[%clk 0:02:57]}  c5 {[%clk 0:02:59]} 4. d5 {[%clk 0:02:57]}  b5 {[%clk 0:02:57]} 5. cxb5 {[%clk 0:02:57]}  a6 {[%clk 0:02:57]} 6. bxa6 {[%clk 0:02:58]}  Bxa6 {[%clk 0:02:41]} 7. Bg2 {[%clk 0:02:56]}  d6 {[%clk 0:02:40]} 8. Nc3 {[%clk 0:02:54]}  Qa5 {[%clk 0:02:38]} 9. Bd2 {[%clk 0:02:54]}  Nd7 {[%clk 0:02:37]} 10. Nf3 {[%clk 0:02:45]}  Ngf6 {[%clk 0:02:32]} 11. O-O {[%clk 0:02:44]}  O-O {[%clk 0:02:32]} 12. a4 {[%clk 0:02:36]}  Rfb8 {[%clk 0:02:31]} 13. Nb5 {[%clk 0:02:35]}  Qb6 {[%clk 0:02:30]} 14. Bc3 {[%clk 0:02:28]}  Bxb5 {[%clk 0:02:29]} 15. axb5 {[%clk 0:02:29]}  Qxb5 {[%clk 0:02:30]} 16. Rxa8 {[%clk 0:02:05]}  Rxa8 {[%clk 0:02:28]} 17. Re1 {[%clk 0:02:02]}  Ne4 {[%clk 0:02:23]} 18. Bxg7 {[%clk 0:01:55]}  Kxg7 {[%clk 0:02:24]} 19. Nd2 {[%clk 0:01:46]}  Nxd2 {[%clk 0:02:21]} 20. Qxd2 {[%clk 0:01:47]}  Rb8 {[%clk 0:02:16]} 21. Rb1 {[%clk 0:01:44]}  Qb3 {[%clk 0:02:09]} 22. Be4 {[%clk 0:01:37]}  Ne5 {[%clk 0:02:08]} 23. Qc3 {[%clk 0:01:33]}  f5 {[%clk 0:01:48]} 24. Bc2 {[%clk 0:01:18]}  Qxc3 {[%clk 0:01:39]} 25. bxc3 {[%clk 0:01:19]}  Rxb1+ {[%clk 0:01:36]} 26. Bxb1 {[%clk 0:01:20]}  Nd7 {[%clk 0:01:28]} 27. f4 {[%clk 0:01:14]}  Nb6 {[%clk 0:01:23]} 28. e4 {[%clk 0:01:08]}  Na4 {[%clk 0:01:16]} 29. c4 {[%clk 0:00:56]}  Nc3 {[%clk 0:01:15]} 30. Bc2 {[%clk 0:00:56]}  Nxe4 {[%clk 0:01:05]} 31. Bxe4 {[%clk 0:00:51]}  fxe4 {[%clk 0:01:05]} 32. g4 {[%clk 0:00:52]}  Kf6 {[%clk 0:00:54]} 33. h4 {[%clk 0:00:43]}  e6 {[%clk 0:00:42]} 34. dxe6 {[%clk 0:00:16]}  Kxe6 {[%clk 0:00:42]} 35. Kf2 {[%clk 0:00:17]}  h5 {[%clk 0:00:39]} 36. g5 {[%clk 0:00:10]}  d5 {[%clk 0:00:36]} 37. Ke3 {[%clk 0:00:10]}  dxc4 {[%clk 0:00:32]} 38. Kxe4 {[%clk 0:00:11]}  c3 {[%clk 0:00:32]} 39. Kd3 {[%clk 0:00:11]}  Kf5 {[%clk 0:00:32]} 40. Kxc3 {[%clk 0:00:08]}  Kxf4 {[%clk 0:00:32]} 41. Kc4 {[%clk 0:00:08]}  Kg4 {[%clk 0:00:32]} 42. Kxc5 {[%clk 0:00:08]}  Kxh4 {[%clk 0:00:33]} 0-1


[Site "https://www.chess.com"]

[Event "Titled Tuesday Blitz October 18 Late 2022"]
[White "Celestino, Rafael Teixeira"]
[Black "Bispo, Leonardo"]
[WhiteFideId "2108925"]
[BlackFideId "2107899"]
[WhiteElo "2316"]
[BlackElo "2253"]
[Result "1-0"]
[Round "01"]
[TimeControl "180+1"]
[Date "2022.10.19"]
[WhiteClock "0:00:25"]
[BlackClock "0:00:55"]

1. e4 {[%clk 0:02:57]}  e5 {[%clk 0:02:59]} 2. Nf3 {[%clk 0:02:57]}  Nf6 {[%clk 0:02:59]} 3. Nxe5 {[%clk 0:02:56]}  d6 {[%clk 0:02:58]} 4. Nf3 {[%clk 0:02:55]}  Nxe4 {[%clk 0:02:57]} 5. d4 {[%clk 0:02:56]}  d5 {[%clk 0:02:58]} 6. Bd3 {[%clk 0:02:56]}  Nc6 {[%clk 0:02:58]} 7. O-O {[%clk 0:02:57]}  Be7 {[%clk 0:02:58]} 8. Re1 {[%clk 0:02:57]}  Bf5 {[%clk 0:02:57]} 9. Bf4 {[%clk 0:02:54]}  O-O {[%clk 0:02:56]} 10. Nbd2 {[%clk 0:02:53]}  Nxd2 {[%clk 0:02:56]} 11. Qxd2 {[%clk 0:02:54]}  Bg4 {[%clk 0:02:55]} 12. Ne5 {[%clk 0:02:52]}  Nxe5 {[%clk 0:02:55]} 13. dxe5 {[%clk 0:02:46]}  c5 {[%clk 0:02:53]} 14. h3 {[%clk 0:02:45]}  Be6 {[%clk 0:02:53]} 15. c3 {[%clk 0:02:44]}  h6 {[%clk 0:02:47]} 16. Bxh6 {[%clk 0:02:30]}  c4 {[%clk 0:02:29]} 17. Bc2 {[%clk 0:02:29]}  d4 {[%clk 0:02:19]} 18. cxd4 {[%clk 0:02:21]}  Qb6 {[%clk 0:02:19]} 19. Bg5 {[%clk 0:01:52]}  Bb4 {[%clk 0:02:18]} 20. Qf4 {[%clk 0:01:49]}  Bxe1 {[%clk 0:02:18]} 21. Rxe1 {[%clk 0:01:50]}  Qxb2 {[%clk 0:02:15]} 22. Qe4 {[%clk 0:01:38]}  g6 {[%clk 0:02:13]} 23. Bf6 {[%clk 0:01:36]}  Qb4 {[%clk 0:01:22]} 24. Rb1 {[%clk 0:00:27]}  Qd2 {[%clk 0:00:55]} 25. Qh4 {[%clk 0:00:25]} 1-0


[Site "https://www.chess.com"]

[Event "Titled Tuesday Blitz October 18 Late 2022"]
[White "Dardha, Daniel"]
[Black "Mazurkiewicz, Michal"]
[WhiteFideId "240990"]
[BlackFideId "1124943"]
[WhiteElo "2528"]
[BlackElo "2063"]
[Result "1-0"]
[Round "01"]
[TimeControl "180+1"]
[Date "2022.10.19"]
[WhiteClock "0:01:07"]
[BlackClock "0:00:05"]

1. e4 {[%clk 0:03:00]}  d6 {[%clk 0:02:59]} 2. d4 {[%clk 0:03:00]}  Nf6 {[%clk 0:02:59]} 3. f3 {[%clk 0:03:00]}  c5 {[%clk 0:02:54]} 4. d5 {[%clk 0:02:54]}  g6 {[%clk 0:02:53]} 5. c4 {[%clk 0:02:51]}  Bg7 {[%clk 0:02:53]} 6. Nc3 {[%clk 0:02:50]}  O-O {[%clk 0:02:53]} 7. Be3 {[%clk 0:02:49]}  e6 {[%clk 0:02:53]} 8. Qd2 {[%clk 0:02:49]}  exd5 {[%clk 0:02:53]} 9. cxd5 {[%clk 0:02:50]}  a6 {[%clk 0:02:49]} 10. a4 {[%clk 0:02:49]}  Nbd7 {[%clk 0:02:49]} 11. Nge2 {[%clk 0:02:49]}  Ne5 {[%clk 0:02:47]} 12. Ng3 {[%clk 0:02:49]}  h5 {[%clk 0:02:46]} 13. Be2 {[%clk 0:02:49]}  h4 {[%clk 0:02:44]} 14. Nf1 {[%clk 0:02:49]}  Bd7 {[%clk 0:02:43]} 15. Bg5 {[%clk 0:02:48]}  b5 {[%clk 0:02:37]} 16. axb5 {[%clk 0:02:40]}  axb5 {[%clk 0:02:35]} 17. Rxa8 {[%clk 0:02:41]}  Qxa8 {[%clk 0:02:36]} 18. Bxh4 {[%clk 0:02:37]}  c4 {[%clk 0:01:57]} 19. Ne3 {[%clk 0:02:33]}  Nh5 {[%clk 0:01:36]} 20. Nc2 {[%clk 0:02:26]}  Qa5 {[%clk 0:01:25]} 21. O-O {[%clk 0:02:20]}  b4 {[%clk 0:01:09]} 22. Nd1 {[%clk 0:02:19]}  c3 {[%clk 0:01:08]} 23. bxc3 {[%clk 0:02:17]}  bxc3 {[%clk 0:00:57]} 24. Qe3 {[%clk 0:02:10]}  Ba4 {[%clk 0:00:49]} 25. Nd4 {[%clk 0:01:46]}  Qc5 {[%clk 0:00:49]} 26. Qxc3 {[%clk 0:01:35]}  Bxd1 {[%clk 0:00:48]} 27. Qxc5 {[%clk 0:01:32]}  dxc5 {[%clk 0:00:49]} 28. Rxd1 {[%clk 0:01:26]}  cxd4 {[%clk 0:00:49]} 29. Be7 {[%clk 0:01:23]}  Re8 {[%clk 0:00:21]} 30. d6 {[%clk 0:01:22]}  Nf4 {[%clk 0:00:21]} 31. Bb5 {[%clk 0:01:22]}  Rb8 {[%clk 0:00:18]} 32. d7 {[%clk 0:01:11]}  Nxd7 {[%clk 0:00:17]} 33. Bxd7 {[%clk 0:01:12]}  Rb7 {[%clk 0:00:18]} 34. Bg5 {[%clk 0:01:09]}  Nh3+ {[%clk 0:00:04]} 35. Bxh3 {[%clk 0:01:08]}  Rd7 {[%clk 0:00:05]} 36. Bxd7 {[%clk 0:01:07]} 1-0


[Site "https://www.chess.com"]

[Event "Titled Tuesday Blitz October 18 Late 2022"]
[White "De Souza, Cristiano Gomes"]
[Black "Vlassov, Nikolai"]
[WhiteFideId "2151758"]
[BlackFideId "4103360"]
[WhiteElo "2068"]
[BlackElo "2324"]
[Result "0-1"]
[Round "01"]
[TimeControl "180+1"]
[Date "2022.10.19"]
[WhiteClock "0:00:37"]
[BlackClock "0:01:55"]

1. d4 {[%clk 0:02:59]}  Nf6 {[%clk 0:02:59]} 2. c4 {[%clk 0:02:58]}  Nc6 {[%clk 0:02:59]} 3. Nf3 {[%clk 0:02:58]}  e6 {[%clk 0:02:59]} 4. a3 {[%clk 0:02:56]}  g6 {[%clk 0:02:58]} 5. Nc3 {[%clk 0:02:56]}  Bg7 {[%clk 0:02:59]} 6. e4 {[%clk 0:02:55]}  d5 {[%clk 0:02:59]} 7. cxd5 {[%clk 0:02:55]}  exd5 {[%clk 0:03:00]} 8. e5 {[%clk 0:02:55]}  Ne4 {[%clk 0:03:01]} 9. Bd3 {[%clk 0:02:55]}  Bf5 {[%clk 0:03:00]} 10. O-O {[%clk 0:02:53]}  O-O {[%clk 0:02:58]} 11. Qe2 {[%clk 0:02:51]}  Nxc3 {[%clk 0:02:57]} 12. bxc3 {[%clk 0:02:52]}  Bxd3 {[%clk 0:02:57]} 13. Qxd3 {[%clk 0:02:51]}  Na5 {[%clk 0:02:57]} 14. Nd2 {[%clk 0:02:48]}  Qd7 {[%clk 0:02:57]} 15. a4 {[%clk 0:02:48]}  a6 {[%clk 0:02:55]} 16. Ba3 {[%clk 0:02:47]}  Rfe8 {[%clk 0:02:54]} 17. Bb4 {[%clk 0:02:47]}  Nc6 {[%clk 0:02:51]} 18. Nb3 {[%clk 0:02:45]}  b6 {[%clk 0:02:49]} 19. a5 {[%clk 0:02:43]}  Nxb4 {[%clk 0:02:40]} 20. cxb4 {[%clk 0:02:41]}  Qb5 {[%clk 0:02:41]} 21. Qxb5 {[%clk 0:02:36]}  axb5 {[%clk 0:02:40]} 22. Rfc1 {[%clk 0:02:25]}  Rec8 {[%clk 0:02:36]} 23. Rc6 {[%clk 0:02:18]}  Bf8 {[%clk 0:02:33]} 24. axb6 {[%clk 0:01:58]}  cxb6 {[%clk 0:02:33]} 25. Rxa8 {[%clk 0:01:42]}  Rxc6 {[%clk 0:02:30]} 26. g3 {[%clk 0:01:32]}  Rc4 {[%clk 0:02:27]} 27. Nd2 {[%clk 0:01:21]}  Rxd4 {[%clk 0:02:23]} 28. Nf3 {[%clk 0:01:20]}  Rxb4 {[%clk 0:02:23]} 29. Rb8 {[%clk 0:01:18]}  Kg7 {[%clk 0:02:21]} 30. Rxb6 {[%clk 0:01:15]}  Rb2 {[%clk 0:02:21]} 31. Rb7 {[%clk 0:01:14]}  Bc5 {[%clk 0:02:19]} 32. Ng5 {[%clk 0:01:13]}  Rxf2 {[%clk 0:02:18]} 33. Ne6+ {[%clk 0:01:08]}  Kh6 {[%clk 0:02:18]} 34. Nxc5 {[%clk 0:01:09]}  Re2 {[%clk 0:02:16]} 35. Nd7 {[%clk 0:01:05]}  d4 {[%clk 0:02:14]} 36. Rxb5 {[%clk 0:01:04]}  d3 {[%clk 0:02:14]} 37. Rd5 {[%clk 0:01:04]}  d2 {[%clk 0:02:15]} 38. Kf1 {[%clk 0:01:01]}  Re1+ {[%clk 0:02:15]} 39. Kf2 {[%clk 0:01:00]}  d1=Q {[%clk 0:02:15]} 40. Rxd1 {[%clk 0:01:00]}  Rxd1 {[%clk 0:02:16]} 41. Nf6 {[%clk 0:00:58]}  Ra1 {[%clk 0:02:09]} 42. h4 {[%clk 0:00:57]}  Ra5 {[%clk 0:02:05]} 43. Kf3 {[%clk 0:00:55]}  Kg7 {[%clk 0:02:03]} 44. Kf4 {[%clk 0:00:53]}  h6 {[%clk 0:02:03]} 45. g4 {[%clk 0:00:52]}  Kf8 {[%clk 0:02:02]} 46. h5 {[%clk 0:00:48]}  g5+ {[%clk 0:01:58]} 47. Kf5 {[%clk 0:00:48]}  Ra4 {[%clk 0:01:58]} 48. Nd5 {[%clk 0:00:42]}  Kg7 {[%clk 0:01:56]} 49. e6 {[%clk 0:00:39]}  fxe6+ {[%clk 0:01:56]} 50. Kxe6 {[%clk 0:00:40]}  Rxg4 {[%clk 0:01:56]} 51. Ne7 {[%clk 0:00:38]}  Re4+ {[%clk 0:01:55]} 52. Kd6 {[%clk 0:00:38]}  Rxe7 {[%clk 0:01:55]} 53. Kxe7 {[%clk 0:00:37]}  g4 {[%clk 0:01:55]} 0-1


[Site "https://www.chess.com"]